bitfinex/quotes_BTCUSD_20260117
["timestamp","ask_amount","ask_price","bid_price","bid_amount"]
[1768693956668,0.01051237,95126.0,95122.0,0.01051281]
[1768693956801,0.06307423,95126.0,95122.0,0.01051281]
[1768693957155,0.01051237,95126.0,95122.0,0.06307686]
[1768693957924,0.01051237,95126.0,95123.0,0.0105127]
[1768693960452,0.01051237,95126.0,95123.0,0.06307602]
[1768693960657,0.01051226,95127.0,95124.0,0.01051259]
[1768693962524,0.0630739,95127.0,95123.0,0.0105127]
[1768693963112,0.01051226,95127.0,95123.0,0.06307619]
[1768693963318,0.01051237,95126.0,95123.0,0.0105127]
[1768693964134,0.01051237,95126.0,95123.0,0.06307621]
[1768693964333,0.01051215,95128.0,95124.0,0.01051259]
[1768693964575,0.01051226,95127.0,95124.0,0.01051259]
[1768693964765,0.01051248,95125.0,95122.0,0.01051281]
[1768693965200,0.01051248,95125.0,95121.0,0.01051292]
[1768693965394,0.01051248,95125.0,95122.0,0.06307687]
[1768693965521,0.01051248,95125.0,95122.0,0.01051281]
[1768693966057,0.01051259,95124.0,95121.0,0.01051292]
[1768693966472,0.01051281,95122.0,95118.0,0.26524131]
[1768693966670,0.01051303,95120.0,95117.0,0.1274]
[1768693967033,0.01051303,95120.0,95116.0,0.06308078]
[1768693967242,0.01051303,95120.0,95117.0,0.1274]
[1768693967691,0.05256418,95122.0,95118.0,0.01051325]
[1768693968000,0.01051281,95122.0,95118.0,0.06307952]
[1768693968337,0.01051303,95120.0,95117.0,0.13791336]
[1768693970162,0.06307836,95120.0,95117.0,0.13791336]
[1768693971287,0.06307853,95120.0,95117.0,0.1274]
[1768693971739,0.01051303,95120.0,95117.0,0.13791336]
[1768693972194,0.01051303,95120.0,95117.0,0.19048012]
[1768693972425,0.01051303,95120.0,95117.0,0.13791336]
[1768693973256,0.06307827,95120.0,95117.0,0.13791336]
[1768693973644,0.01051303,95120.0,95117.0,0.13791336]
[1768693974048,0.01051303,95120.0,95117.0,0.19048016]
[1768693974274,0.06307865,95120.0,95117.0,0.1274]
[1768693974880,0.01051303,95120.0,95117.0,0.1274]
[1768693976725,0.01051303,95120.0,95116.0,0.06308084]
[1768693976942,0.01051292,95121.0,95117.0,0.01051336]
[1768693977180,0.0630777,95121.0,95117.0,0.13791336]
[1768693977402,0.01051292,95121.0,95117.0,0.19048016]
[1768693978439,0.01051303,95120.0,95117.0,0.1274]
[1768693978671,0.01051303,95120.0,95117.0,0.13791336]
[1768693979517,0.01051303,95120.0,95117.0,0.1274]
[1768693979728,0.06307847,95120.0,95117.0,0.1274]
[1768693980333,0.01051303,95120.0,95117.0,0.1274]
[1768693980747,0.03152629,95118.0,95117.0,0.1274]
[1768693980901,0.02975061,95118.0,95117.0,0.1274]
[1768693981843,0.01051303,95120.0,95117.0,0.1274]
[1768693982385,0.06307829,95120.0,95117.0,0.1274]
[1768693982699,0.03153969,95117.0,95112.0,0.06308352]
[1768693982926,0.01051369,95114.0,95111.0,0.01051403]
[1768693983237,0.01051347,95116.0,95111.0,0.01051403]
[1768693983923,0.06308091,95116.0,95111.0,0.01051403]
[1768693984136,0.01051347,95116.0,95113.0,0.0105138]
[1768693984344,0.01051336,95117.0,95113.0,0.0105138]
[1768693984345,0.01051336,95117.0,95114.0,0.01051369]
[1768693985334,0.06308074,95117.0,95113.0,0.0105138]
[1768693985529,0.01051336,95117.0,95113.0,0.0105138]
[1768693985686,0.01051336,95117.0,95113.0,0.06308274]
[1768693986100,0.01051336,95117.0,95114.0,0.01051369]
[1768693987663,0.01051336,95117.0,95113.0,0.0105138]
[1768693988258,0.01051347,95116.0,95112.0,0.01051392]
[1768693988530,0.01051347,95116.0,95113.0,0.0105138]
[1768693988723,0.01051336,95117.0,95114.0,0.01051369]
[1768693990629,0.01051325,95118.0,95115.0,0.01051358]
[1768693991805,0.06307959,95118.0,95115.0,0.01051358]
[1768693992430,0.01051325,95118.0,95115.0,0.01051358]
[1768693993375,0.01051314,95119.0,95116.0,0.01051347]
[1768693993811,0.01051325,95118.0,95115.0,0.01051358]
[1768693994016,0.01051336,95117.0,95114.0,0.01051369]
[1768693995695,0.01051325,95118.0,95115.0,0.01051358]
[1768693995899,0.01042255,95118.0,95115.0,0.01051358]
[1768693996302,0.06308019,95117.0,95114.0,0.01051369]
[1768693996528,0.01051336,95117.0,95114.0,0.01051369]
[1768693996743,0.01051358,95115.0,95111.0,0.01051403]
[1768693996904,0.11246295,95115.0,95111.0,0.01051403]
[1768693997124,0.16503138,95115.0,95111.0,0.01051403]
[1768693997324,0.01051392,95112.0,95109.0,0.1274]
[1768693997535,0.02102767,95110.0,95103.0,0.01051491]
[1768693997845,0.06308464,95111.0,95106.0,0.05257288]
[1768693998164,0.06308464,95111.0,95105.0,0.063088]
[1768693998165,0.02102773,95110.0,95105.0,0.063088]
[1768693998366,0.06308554,95109.0,95106.0,0.01051458]
[1768693998927,0.01051425,95109.0,95106.0,0.01051458]
[1768693999131,0.01051403,95111.0,95106.0,0.01051458]
[1768693999337,0.01051403,95111.0,95107.0,0.05257183]
[1768693999658,0.01051425,95109.0,95105.0,0.01051469]
[1768693999939,0.01051425,95109.0,95106.0,0.00996232]
[1768694000705,0.01051436,95108.0,95105.0,0.01051469]
[1768694000815,0.01051425,95109.0,95105.0,0.01051469]
[1768694001040,0.01051425,95109.0,95106.0,0.01051458]
[1768694005017,0.01051425,95109.0,95106.0,0.06308745]
[1768694005424,0.01051436,95108.0,95105.0,0.06308808]
[1768694005629,0.01051425,95109.0,95106.0,0.01051458]
[1768694008763,0.06308572,95109.0,95105.0,0.01051469]
[1768694009120,0.01051414,95110.0,95106.0,0.01051458]
[1768694009336,0.01051403,95111.0,95107.0,0.05257223]
[1768694010358,0.01051403,95111.0,95107.0,0.0630867]
[1768694010732,0.01051403,95111.0,95108.0,0.01051436]
[1768694011737,0.01051414,95110.0,95107.0,0.01051447]
[1768694012876,0.06308452,95111.0,95107.0,0.01051447]
[1768694012877,0.01051403,95111.0,95108.0,0.01051436]
[1768694013998,0.06308452,95111.0,95107.0,0.01051447]
[1768694015047,0.01051414,95110.0,95107.0,0.01051447]
[1768694016011,0.01051425,95109.0,95106.0,0.01051458]
[1768694016905,0.01051425,95109.0,95106.0,0.01043592]
[1768694017512,0.01051414,95110.0,95107.0,0.01051447]
[1768694017956,0.06308488,95110.0,95107.0,0.01051447]
[1768694019224,0.01051414,95110.0,95107.0,0.01051447]
[1768694020494,0.06308512,95110.0,95106.0,0.01043592]
[1768694021575,0.06308585,95109.0,95105.0,0.01051469]
[1768694021843,0.01051447,95107.0,95103.0,0.06308941]
[1768694022315,0.01051447,95107.0,95104.0,0.06308882]
[1768694022733,0.01051414,95110.0,95106.0,0.01051458]
[1768694023175,0.01051414,95110.0,95106.0,0.06308703]
[1768694023568,0.01051414,95110.0,95106.0,0.01051458]
[1768694023965,0.01051414,95110.0,95107.0,0.0525723]
[1768694024361,0.06308366,95112.0,95107.0,0.06308677]
[1768694024751,0.01051403,95111.0,95107.0,0.06308677]
[1768694024955,0.06308446,95111.0,95107.0,0.01051447]
[1768694026347,0.0105138,95113.0,95108.0,0.01051436]
[1768694026556,0.0105138,95113.0,95109.0,0.01051425]
[1768694027195,0.06308326,95113.0,95109.0,0.01051425]
[1768694028401,0.0105138,95113.0,95109.0,0.0630855]
[1768694028812,0.06308287,95113.0,95109.0,0.01051425]
[1768694030769,0.0105138,95113.0,95109.0,0.06308544]
[1768694031372,0.0105138,95113.0,95110.0,0.06308469]
[1768694031571,0.0105138,95113.0,95110.0,0.01051414]
[1768694032326,0.0105138,95113.0,95110.0,0.01033007]
[1768694032535,0.1274,95116.0,95102.0,0.01051502]
[1768694032536,0.06308687,95107.0,95102.0,0.01051502]
[1768694032758,0.06308687,95107.0,95101.0,0.00047308]
[1768694032759,0.06308723,95107.0,95101.0,0.00047308]
[1768694033342,0.05257409,95104.0,95101.0,0.00047308]
[1768694033569,0.06308723,95107.0,95101.0,0.00047308]
[1768694033746,0.0105148,95106.0,95101.0,0.00047308]
[1768694033970,0.05257512,95102.0,95101.0,0.00047308]
[1768694034200,0.06308887,95104.0,95101.0,0.00047308]
[1768694035063,0.0105148,95104.0,95101.0,0.00047308]
[1768694036103,0.0105148,95103.0,95101.0,0.00047308]
[1768694045591,0.0105148,95103.0,95101.0,0.00042775]
[1768694045805,0.06308981,95103.0,95101.0,0.00042775]
[1768694046364,0.05257512,95102.0,95101.0,0.00042775]
[1768694046551,0.05257512,95102.0,95101.0,0.00033709]
[1768694047522,0.06308951,95103.0,95101.0,0.00033709]
[1768694047721,0.0105148,95103.0,95101.0,0.00033709]
[1768694048101,0.06308949,95103.0,95101.0,0.00033709]
[1768694048900,0.06308949,95103.0,95099.0,0.0001603]
[1768694048901,0.06309014,95102.0,95099.0,0.0001603]
[1768694049100,0.01051502,95102.0,95099.0,0.0001603]
[1768694049923,0.01051502,95102.0,95099.0,0.01067565]
[1768694050548,0.06308936,95104.0,95099.0,0.06325243]
[1768694050764,0.06308962,95103.0,95099.0,0.01067565]
[1768694050968,0.01051491,95103.0,95099.0,0.01063032]
[1768694051170,0.01051502,95102.0,95099.0,0.00011497]
[1768694052446,0.0630902,95102.0,95099.0,0.00011497]
[1768694052643,0.01051502,95102.0,95099.0,0.00011497]
[1768694053756,0.0105148,95101.0,95099.0,0.00011497]
[1768694055001,0.0105148,95101.0,95099.0,0.00058763]
[1768694055322,0.06309055,95101.0,95099.0,0.00058763]
[1768694056787,0.0105148,95101.0,95099.0,0.00058763]
[1768694058055,0.0105148,95101.0,95099.0,0.0005423]
[1768694058830,0.0105148,95101.0,95099.0,0.00049697]
[1768694059051,0.0105148,95101.0,95099.0,0.00045165]
[1768694059249,0.06309061,95101.0,95099.0,0.00045165]
[1768694066163,0.0105148,95101.0,95099.0,0.00045165]
[1768694067575,0.06309051,95101.0,95099.0,0.00045165]
[1768694068217,0.05257571,95101.0,95099.0,0.00045165]
[1768694070198,0.0105148,95100.0,95099.0,0.00045165]
[1768694074359,0.06309103,95100.0,95099.0,0.00045165]
[1768694074771,0.0105148,95100.0,95099.0,0.00045165]
[1768694075234,0.0105148,95100.0,95089.0,0.01067676]
[1768694075235,0.01051579,95095.0,95089.0,0.01067676]
[1768694075447,0.01051579,95095.0,95089.0,0.00020752]
[1768694075448,0.05258125,95091.0,95089.0,0.00020752]
[1768694075706,0.01051613,95092.0,95089.0,0.00020752]
[1768694075918,0.01051613,95092.0,95089.0,0.01072398]
[1768694076125,0.01051602,95093.0,95089.0,0.06330617]
[1768694076351,0.01051613,95092.0,95089.0,0.01072398]
[1768694076562,0.05258121,95091.0,95089.0,0.00020752]
[1768694077218,0.06309681,95092.0,95089.0,0.00020752]
[1768694078219,0.0105148,95091.0,95089.0,0.00020752]
[1768694079668,0.01051635,95090.0,95085.0,0.0105169]
[1768694080041,0.0105148,95091.0,95089.0,0.05258187]
[1768694081434,0.0105148,95091.0,95090.0,0.05258176]
[1768694081670,0.0105148,95091.0,95089.0,0.0525822]
[1768694082166,0.0105148,95091.0,95090.0,0.05258176]
[1768694082421,0.12744,95093.0,95092.0,0.05258065]
[1768694082679,0.12744,95093.0,95091.0,0.05258099]
[1768694084494,0.11610701,95097.0,95093.0,0.06309596]
[1768694084699,0.12744,95096.0,95093.0,0.01051602]
[1768694084912,0.12744,95096.0,95093.0,0.06309606]
[1768694085724,0.12744,95096.0,95094.0,0.0525792]
[1768694085954,0.12744,95096.0,95093.0,0.01051602]
[1768694086160,0.12744,95096.0,95093.0,0.06309605]
[1768694086944,0.12744,95096.0,95094.0,0.05257945]
[1768694089454,0.12744,95096.0,95093.0,0.06309608]
[1768694089832,0.11610679,95099.0,95096.0,0.01051568]
[1768694090052,0.1500814,95098.0,95096.0,0.01051568]
[1768694090308,0.0226414,95097.0,95096.0,0.01051568]
[1768694090693,0.0226414,95097.0,95096.0,0.06309412]
[1768694092089,0.10437452,95101.0,95098.0,0.06309262]
[1768694092298,0.10437452,95101.0,95099.0,0.05257674]
[1768694092299,0.0226406,95100.0,95099.0,0.05257674]
[1768694093083,0.1500806,95100.0,95099.0,0.05257674]
[1768694093240,0.1500806,95100.0,95098.0,0.01051546]
[1768694093463,0.0226406,95099.0,95098.0,0.01051546]
[1768694093986,0.0226406,95099.0,95098.0,0.0630928]
[1768694094805,0.0226406,95099.0,95098.0,0.01051546]
[1768694095239,0.0226406,95099.0,95096.0,0.01051568]
[1768694095467,0.12744,95100.0,95096.0,0.01051568]
[1768694095468,0.0226406,95098.0,95096.0,0.01051568]
[1768694095647,0.0226406,95097.0,95096.0,0.06309412]
[1768694097087,0.12744,95100.0,95098.0,0.05257725]
[1768694097294,0.12744,95100.0,95097.0,0.06309343]
[1768694097500,0.12744,95100.0,95096.0,0.05257789]
[1768694098305,0.13795524,95100.0,95097.0,0.01051557]
[1768694099485,0.13795524,95100.0,95097.0,0.06309331]
[1768694099686,0.01051491,95103.0,95097.0,0.06309327]
[1768694099906,0.12744,95099.0,95098.0,0.05257697]
[1768694100320,0.12744,95099.0,95097.0,0.06309333]
[1768694100520,0.12444751,95099.0,95098.0,0.05257734]
[1768694101997,0.12744,95099.0,95098.0,0.01051546]
[1768694104295,0.01051491,95103.0,95099.0,0.05257643]
[1768694104629,0.12744,95102.0,95098.0,0.05257734]
[1768694105186,0.12744,95102.0,95100.0,0.01051524]
[1768694106537,0.01051469,95105.0,95101.0,0.01051513]
[1768694106714,0.12744,95104.0,95101.0,0.01051513]
[1768694107345,0.12744,95104.0,95101.0,0.06309037]
[1768694107552,0.12744,95104.0,95100.0,0.01051524]
[1768694107990,0.12744,95104.0,95100.0,0.06309136]
[1768694108362,0.12744,95104.0,95101.0,0.01051513]
[1768694109046,0.19052888,95104.0,95100.0,0.01051524]
[1768694109268,0.02267422,95103.0,95100.0,0.01051524]
[1768694109491,0.02267422,95102.0,95100.0,0.01051524]
[1768694109708,0.02267422,95101.0,95100.0,0.01051524]
[1768694110593,0.15011422,95101.0,95100.0,0.01051524]
[1768694112241,0.02267422,95101.0,95100.0,0.01051524]
[1768694112537,0.15011422,95101.0,95100.0,0.01051524]
[1768694112737,0.02267422,95101.0,95100.0,0.01051524]
[1768694112946,0.15011422,95101.0,95100.0,0.01051524]
[1768694113149,0.02267422,95101.0,95098.0,0.01051546]
[1768694113305,0.02267422,95100.0,95098.0,0.01051546]
[1768694113536,0.02267422,95099.0,95098.0,0.01051546]
[1768694113733,0.02267422,95099.0,95098.0,0.0630928]
[1768694114736,0.15011422,95099.0,95098.0,0.0630928]
[1768694118180,0.15011422,95099.0,95097.0,0.05257783]
[1768694118388,0.02267422,95098.0,95097.0,0.05257783]
[1768694119362,0.02267422,95098.0,95096.0,0.01051568]
[1768694119549,0.02267422,95097.0,95096.0,0.06309412]
[1768694128322,0.02267422,95097.0,95096.0,0.01051568]
[1768694130269,0.02267422,95097.0,95096.0,0.06309412]
[1768694133152,0.12744,95099.0,95098.0,0.05257734]
[1768694133449,0.12744,95099.0,95097.0,0.05257782]
[1768694133658,0.12744,95099.0,95096.0,0.01051568]
[1768694134038,0.12744,95099.0,95096.0,0.0630941]
[1768694134423,0.13795535,95099.0,95095.0,0.01051579]
[1768694135611,0.13795535,95099.0,95095.0,0.06309473]
[1768694135929,0.13795535,95099.0,95095.0,0.01051579]
[1768694138564,0.01051568,95096.0,95093.0,0.01051602]
[1768694139233,0.01051546,95098.0,95094.0,0.01051591]
[1768694140325,0.0630928,95098.0,95094.0,0.01051591]
[1768694140743,0.01051546,95098.0,95095.0,0.01051579]
[1768694141319,0.06309291,95098.0,95095.0,0.01051579]
[1768694141731,0.01051546,95098.0,95095.0,0.01051579]
[1768694142578,0.063093,95098.0,95094.0,0.01051591]
[1768694142779,0.01051546,95098.0,95094.0,0.01051591]
[1768694143463,0.01051546,95098.0,95094.0,0.06309526]
[1768694144276,0.01051546,95098.0,95095.0,0.01051579]
[1768694144499,0.01051546,95098.0,95094.0,0.06309543]
[1768694145076,0.02267839,95097.0,95094.0,0.06309543]
[1768694145267,0.02267839,95096.0,95095.0,0.06309478]
[1768694146324,0.02267839,95096.0,95095.0,0.01051579]
[1768694147747,0.02267839,95096.0,95095.0,0.06309478]
[1768694148751,0.12744,95099.0,95098.0,0.05257734]
[1768694148952,0.00708433,95098.0,95097.0,0.05257784]
[1768694153853,0.12744,95099.0,95098.0,0.05257734]
[1768694157591,0.0420654,95104.0,95101.0,0.01051513]
[1768694157824,0.12744,95103.0,95101.0,0.01051513]
[1768694160846,0.02267623,95102.0,95101.0,0.01051513]
[1768694161288,0.00740369,95102.0,95101.0,0.01051513]
[1768694161512,0.00740369,95102.0,95100.0,0.01051524]
[1768694161721,0.13795491,95103.0,95100.0,0.01051524]
[1768694163030,0.13758658,95103.0,95100.0,0.01051524]
[1768694163251,0.01051502,95102.0,95097.0,0.01051557]
[1768694163496,0.01051502,95102.0,95098.0,0.01051546]
[1768694164789,0.01051502,95102.0,95099.0,0.01051535]
[1768694166953,0.12707167,95103.0,95100.0,0.01051524]
[1768694167601,0.12670272,95103.0,95100.0,0.01043736]
[1768694167812,0.12670272,95103.0,95099.0,0.01051535]
[1768694168021,0.12670272,95103.0,95099.0,0.06309203]
[1768694168241,0.12670272,95103.0,95100.0,0.01051524]
[1768694171559,0.10313789,95116.0,95109.0,0.05257121]
[1768694171756,0.10313789,95116.0,95108.0,0.01051436]
[1768694171757,0.01051392,95112.0,95108.0,0.01051436]
[1768694172816,0.01051403,95111.0,95107.0,0.01051447]
[1768694173235,0.02267556,95110.0,95107.0,0.01051447]
[1768694173445,0.02267556,95109.0,95107.0,0.01051447]
[1768694173665,0.02267556,95108.0,95107.0,0.01051447]
[1768694174795,0.02267556,95108.0,95105.0,0.11397808]
[1768694175035,0.02267556,95107.0,95105.0,0.01051469]
[1768694175264,0.01051425,95109.0,95106.0,0.01051458]
[1768694175714,0.01051425,95109.0,95105.0,0.01051469]
[1768694176352,0.01051436,95108.0,95105.0,0.01051469]
[1768694176532,0.01051436,95108.0,95103.0,0.01051491]
[1768694177436,0.0630862,95108.0,95103.0,0.01051491]
[1768694177895,0.01051447,95107.0,95103.0,0.01051491]
[1768694178950,0.01051447,95107.0,95104.0,0.0105148]
[1768694181166,0.01051436,95108.0,95104.0,0.0105148]
[1768694182894,0.06308625,95108.0,95104.0,0.0105148]
[1768694183556,0.01051436,95108.0,95104.0,0.0105148]
[1768694185255,0.01051425,95109.0,95105.0,0.01051469]
[1768694185692,0.01051425,95109.0,95105.0,0.06308794]
[1768694186124,0.01051436,95108.0,95105.0,0.01051469]
[1768694187208,0.02266376,95107.0,95105.0,0.01051469]
[1768694187419,0.02266376,95106.0,95105.0,0.01051469]
[1768694188882,0.01051403,95111.0,95105.0,0.01051469]
[1768694188883,0.01051369,95114.0,95108.0,0.01051436]
[1768694189109,0.01051392,95112.0,95108.0,0.01051436]
[1768694190597,0.01051392,95112.0,95109.0,0.01051425]
[1768694191608,0.01051425,95109.0,95106.0,0.01051458]
[1768694191815,0.01051436,95108.0,95104.0,0.0105148]
[1768694192789,0.06308637,95108.0,95104.0,0.0105148]
[1768694193191,0.01051436,95108.0,95104.0,0.06308881]
[1768694193397,0.01051447,95107.0,95104.0,0.0105148]
[1768694194759,0.06308685,95107.0,95104.0,0.0105148]
[1768694194979,0.01051458,95106.0,95103.0,0.01051491]
[1768694196071,0.01051447,95107.0,95104.0,0.0105148]
[1768694197386,0.01051447,95107.0,95104.0,0.06308873]
[1768694197610,0.01051436,95108.0,95105.0,0.01051469]
[1768694198397,0.06308632,95108.0,95105.0,0.01051469]
[1768694198611,0.01051436,95108.0,95105.0,0.01051469]
[1768694200874,0.02267595,95107.0,95105.0,0.01051469]
[1768694201081,0.02267595,95106.0,95105.0,0.01051469]
[1768694202765,0.02267595,95106.0,95105.0,0.06308816]
[1768694205580,0.02267905,95109.0,95108.0,0.06308611]
[1768694205725,0.02267905,95109.0,95108.0,0.01051436]
[1768694206123,0.02267905,95109.0,95108.0,0.06308617]
[1768694207666,0.0001603,95113.0,95110.0,0.01051414]
[1768694208108,0.0001603,95113.0,95112.0,0.0525696]
[1768694208515,0.01051325,95118.0,95114.0,0.01051369]
[1768694209253,0.01051325,95118.0,95115.0,0.01051358]
[1768694209460,0.06307824,95120.0,95116.0,0.01051347]
[1768694209658,0.00047234,95120.0,95117.0,0.06307966]
[1768694209860,0.00047234,95120.0,95118.0,0.05256625]
[1768694210450,0.00047234,95120.0,95118.0,0.01051325]
[1768694215702,0.00047234,95120.0,95117.0,0.01051336]
[1768694217144,0.01098537,95120.0,95117.0,0.01051336]
[1768694217343,0.06355067,95120.0,95116.0,0.01051347]
[1768694218468,0.0630791,95119.0,95116.0,0.01051347]
[1768694218678,0.01051325,95118.0,95114.0,0.01051369]
[1768694218882,0.01051347,95116.0,95113.0,0.06308282]
[1768694219085,0.06308095,95116.0,95112.0,0.01051392]
[1768694219491,0.01051358,95115.0,95111.0,0.01051403]
[1768694220234,0.06308161,95115.0,95111.0,0.01051403]
[1768694220394,0.01051369,95114.0,95111.0,0.01051403]
[1768694221042,0.0105138,95113.0,95109.0,0.01051425]
[1768694221252,0.0525702,95111.0,95107.0,0.01051447]
[1768694221458,0.00980745,95111.0,95107.0,0.01051447]
[1768694221673,0.06237764,95111.0,95107.0,0.01051447]
[1768694222107,0.01051414,95110.0,95106.0,0.12744]
[1768694222322,0.00980745,95111.0,95106.0,0.13795458]
[1768694223218,0.00980745,95111.0,95108.0,0.01051436]
[1768694223602,0.01051414,95110.0,95107.0,0.01051447]
[1768694224857,0.01051392,95112.0,95108.0,0.06308567]
[1768694225178,0.01051392,95112.0,95109.0,0.01051425]
[1768694226297,0.06308355,95112.0,95109.0,0.01051425]
[1768694228032,0.01051392,95112.0,95109.0,0.01051425]
[1768694228240,0.01051392,95112.0,95109.0,0.06308533]
[1768694228452,0.01051392,95112.0,95109.0,0.01051425]
[1768694229209,0.0105138,95113.0,95110.0,0.01051414]
[1768694230044,0.0105138,95113.0,95110.0,0.06308481]
[1768694230611,0.0105138,95113.0,95110.0,0.01051414]
[1768694233308,0.0105138,95113.0,95109.0,0.01051425]
[1768694233309,0.01051392,95112.0,95109.0,0.01051425]
[1768694233893,0.01051392,95112.0,95108.0,0.01046903]
[1768694234116,0.01051403,95111.0,95108.0,0.01051436]
[1768694234396,0.01051414,95110.0,95106.0,0.19052736]
[1768694234602,0.01051403,95111.0,95107.0,0.06308672]
[1768694235984,0.06308432,95111.0,95107.0,0.01051447]
[1768694236596,0.01051403,95111.0,95107.0,0.01051447]
[1768694236798,0.01051403,95111.0,95107.0,0.0630867]
[1768694237417,0.01051403,95111.0,95108.0,0.06308603]
[1768694237625,0.01051414,95110.0,95107.0,0.01051447]
[1768694237884,0.01051403,95111.0,95108.0,0.01051436]
[1768694238109,0.06308353,95112.0,95108.0,0.01051436]
[1768694238530,0.01051392,95112.0,95108.0,0.06308592]
[1768694239302,0.01051392,95112.0,95109.0,0.06308548]
[1768694239489,0.01051392,95112.0,95109.0,0.01051425]
[1768694249301,0.0105138,95113.0,95110.0,0.01051414]
[1768694249513,0.02268519,95112.0,95110.0,0.01051414]
[1768694249701,0.06308289,95113.0,95110.0,0.01051414]
[1768694249877,0.02268518,95112.0,95110.0,0.01051414]
[1768694250080,0.0105138,95113.0,95110.0,0.01051414]
[1768694250470,0.06308227,95114.0,95110.0,0.01051414]
[1768694250471,0.02268523,95112.0,95111.0,0.05257015]
[1768694250649,0.02268523,95112.0,95110.0,0.01051414]
[1768694250987,0.01051369,95114.0,95110.0,0.01051414]
[1768694251196,0.02268528,95113.0,95110.0,0.01051414]
[1768694251406,0.02268528,95112.0,95110.0,0.01051414]
[1768694251608,0.01051369,95114.0,95110.0,0.06308475]
[1768694251809,0.02268531,95113.0,95110.0,0.06308475]
[1768694252020,0.02268531,95112.0,95110.0,0.06308475]
[1768694252225,0.01051369,95114.0,95110.0,0.06308475]
[1768694252494,0.02268541,95113.0,95110.0,0.06308475]
[1768694252685,0.02268541,95112.0,95110.0,0.01051414]
[1768694252892,0.06308254,95114.0,95110.0,0.01051414]
[1768694253100,0.02268538,95113.0,95110.0,0.01051414]
[1768694253305,0.02268538,95112.0,95110.0,0.06308482]
[1768694253523,0.01051369,95114.0,95110.0,0.06308482]
[1768694253742,0.02268534,95113.0,95110.0,0.06308482]
[1768694253952,0.02268534,95112.0,95110.0,0.06308482]
[1768694254164,0.02268534,95111.0,95110.0,0.06308482]
[1768694254575,0.02268534,95111.0,95110.0,0.01051414]
[1768694256433,0.02268534,95111.0,95110.0,0.01043546]
[1768694260870,0.02268534,95111.0,95110.0,0.06300616]
[1768694262909,0.02268534,95111.0,95108.0,0.06308603]
[1768694263106,0.02268524,95110.0,95109.0,0.06308551]
[1768694264103,0.0105138,95113.0,95110.0,0.01051414]
[1768694264306,0.02268536,95112.0,95110.0,0.01051414]
[1768694264515,0.02268536,95111.0,95110.0,0.01051414]
[1768694264725,0.00047234,95120.0,95116.0,0.01051347]
[1768694264937,0.00047234,95120.0,95117.0,0.06308011]
[1768694265140,0.00047234,95120.0,95117.0,0.01051336]
[1768694265389,0.00047234,95120.0,95117.0,0.06308016]
[1768694265588,0.00047234,95120.0,95117.0,0.01051336]
[1768694265802,0.01098537,95120.0,95117.0,0.01051336]
[1768694266349,0.05256628,95118.0,95113.0,0.0105138]
[1768694266538,0.01051336,95117.0,95113.0,0.0105138]
[1768694266700,0.01051358,95115.0,95110.0,0.01051414]
[1768694266863,0.01051358,95115.0,95111.0,0.01051403]
[1768694267279,0.01051369,95114.0,95108.0,0.1274]
[1768694267519,0.09941962,95112.0,95108.0,0.1274]
[1768694267729,0.10993354,95112.0,95109.0,0.05257109]
[1768694267931,0.10993354,95112.0,95108.0,0.19048615]
[1768694268166,0.10993354,95112.0,95105.0,0.01051469]
[1768694268167,0.10993376,95110.0,95105.0,0.01051469]
[1768694268370,0.09941962,95108.0,95105.0,0.01051469]
[1768694268621,0.09941962,95108.0,95103.0,0.01051491]
[1768694268622,0.01051436,95108.0,95103.0,0.01051491]
[1768694268811,0.01051458,95106.0,95103.0,0.13791491]
[1768694269143,0.01530736,95107.0,95103.0,0.13791491]
[1768694269352,0.06308727,95107.0,95103.0,0.13791491]
[1768694269768,0.01051458,95106.0,95103.0,0.1274]
[1768694269966,0.01051524,95100.0,95098.0,0.1274]
[1768694270193,0.01051591,95094.0,95092.0,0.03154642]
[1768694270400,0.06309384,95098.0,95097.0,0.1274]
[1768694270826,0.01051546,95098.0,95097.0,0.1274]
[1768694271229,0.01051524,95100.0,95097.0,0.12032199]
[1768694271230,0.06309197,95100.0,95097.0,0.12032199]
[1768694272736,0.01051557,95097.0,95094.0,0.01051591]
[1768694273038,0.01051546,95098.0,95094.0,0.01051591]
[1768694273271,0.01051557,95097.0,95093.0,0.01051602]
[1768694273452,0.0630939,95097.0,95093.0,0.01051602]
[1768694273745,0.0630939,95097.0,95089.0,0.03170701]
[1768694273746,0.01051602,95093.0,95089.0,0.03170701]
[1768694273947,0.01051613,95092.0,95089.0,0.0001603]
[1768694274144,0.01051613,95092.0,95089.0,0.01067676]
[1768694274933,0.01051613,95092.0,95089.0,0.0001603]
[1768694274934,0.063097,95092.0,95089.0,0.0001603]
[1768694275246,0.01051613,95092.0,95089.0,0.0001603]
[1768694275454,0.06309689,95092.0,95089.0,0.0001603]
[1768694275750,0.01051624,95091.0,95085.0,0.0105169]
[1768694275951,0.01051646,95089.0,95085.0,0.00520305]
[1768694276167,0.01051657,95088.0,95083.0,0.01051712]
[1768694276366,0.01042613,95086.0,95082.0,0.01051723]
[1768694276569,0.01051646,95089.0,95083.0,0.01051712]
[1768694276731,0.05258308,95088.0,95083.0,0.06310262]
[1768694276934,0.05258308,95088.0,95083.0,0.01057673]
[1768694278055,0.06310083,95086.0,95083.0,5.961e-05]
[1768694278271,0.03134353,95085.0,95083.0,5.961e-05]
[1768694278449,0.03134353,95085.0,95084.0,0.05258508]
[1768694278796,0.01051624,95091.0,95088.0,0.01051657]
[1768694280457,0.01051579,95095.0,95090.0,0.01051635]
[1768694280668,0.01051557,95097.0,95094.0,0.09860447]
[1768694280669,0.1274,95096.0,95094.0,0.09860447]
[1768694281081,0.1274,95096.0,95093.0,0.01051602]
[1768694281800,0.13791568,95096.0,95093.0,0.01051602]
[1768694282825,0.01051568,95096.0,95093.0,0.01051602]
[1768694283618,0.06309424,95096.0,95093.0,0.01051602]
[1768694285314,0.01051568,95096.0,95093.0,0.01051602]
[1768694286633,0.03155046,95112.0,95098.0,0.01051546]
[1768694286857,0.12744,95109.0,95102.0,0.01051502]
[1768694287085,0.05257236,95107.0,95102.0,0.10911949]
[1768694287781,0.00980273,95107.0,95100.0,0.01051524]
[1768694288003,0.0630882,95105.0,95101.0,0.01051513]
[1768694288677,0.01051469,95105.0,95101.0,0.01051513]
[1768694289082,0.06308851,95105.0,95101.0,0.01051513]
[1768694289728,0.01051469,95105.0,95101.0,0.0630908]
[1768694289973,0.0105148,95104.0,95101.0,0.01051513]
[1768694290181,0.06308883,95104.0,95101.0,0.01051513]
[1768694290391,0.01051491,95103.0,95100.0,0.01051524]
[1768694294489,0.01051491,95103.0,95099.0,0.06309211]
[1768694295692,0.01051491,95103.0,95100.0,0.01051524]
[1768694299516,0.01051491,95103.0,95100.0,0.06309137]
[1768694301844,0.0226412,95104.0,95101.0,0.06309055]
[1768694303643,0.0226412,95104.0,95101.0,0.01051513]
[1768694303845,0.0226412,95105.0,95102.0,0.01051502]
[1768694304007,0.0226412,95104.0,95102.0,0.01051502]
[1768694304210,0.0226412,95105.0,95102.0,0.01051502]
[1768694304432,0.0226412,95104.0,95102.0,0.01051502]
[1768694304752,0.0226412,95105.0,95102.0,0.06309014]